bitfinex-derivatives/quotes_SOLF0:USTF0_20260311
["timestamp","ask_amount","ask_price","bid_price","bid_amount"]
[1773245201784,15.5512683,85.597,85.536,15.77960488]
[1773245202086,15.5512683,85.597,85.561,0.08541473]
[1773245203178,10.513,85.592,85.561,0.08541473]
[1773245203783,14.72,85.628,85.561,0.08541473]
[1773245203784,15.5512683,85.613,85.561,0.08541473]
[1773245203981,15.5512683,85.609,85.561,0.08541473]
[1773245204183,10.514,85.583,85.561,0.08541473]
[1773245204393,15.5512683,85.594,85.535,15.77960488]
[1773245204690,15.5512683,85.594,85.563,0.08785901]
[1773245204987,15.5512683,85.58,85.476,14.72]
[1773245205183,15.5512683,85.58,85.477,15.77960488]
[1773245205391,15.5512683,85.569,85.477,15.77960488]
[1773245205692,15.5512683,85.549,85.477,15.77960488]
[1773245206287,0.0851304,85.522,85.477,15.77960488]
[1773245206492,10.522,85.518,85.469,10.528]
[1773245206693,0.0851304,85.522,85.459,15.77960488]
[1773245206991,10.521,85.528,85.476,10.527]
[1773245207391,0.08164101,85.499,85.476,10.527]
[1773245207593,15.5512683,85.532,85.493,0.07408605]
[1773245208088,15.5512683,85.532,85.485,10.526]
[1773245208488,10.521,85.53,85.485,10.526]
[1773245208694,15.5512683,85.532,85.475,15.77960488]
[1773245208896,15.5512683,85.532,85.458,15.77960488]
[1773245209590,0.08984929,85.504,85.458,15.77960488]
[1773245210190,0.08984929,85.504,85.478,10.527]
[1773245210794,10.521,85.53,85.478,10.527]
[1773245211197,0.0753707,85.5,85.478,10.527]
[1773245211991,0.0753707,85.5,85.474,15.82119409]
[1773245211992,15.4521414,85.567,85.488,15.82119409]
[1773245212398,15.4521414,85.588,85.491,15.82119409]
[1773245212600,15.4521414,85.588,85.542,10.519]
[1773245212795,10.515,85.574,85.528,15.82119409]
[1773245212996,10.515,85.574,85.529,10.521]
[1773245213197,10.515,85.574,85.528,15.82119409]
[1773245213800,10.516,85.566,85.542,0.0748915]
[1773245214503,15.4521414,85.572,85.509,15.82119409]
[1773245214703,0.08621252,85.563,85.509,15.82119409]
[1773245214904,15.53835392,85.563,85.509,15.82119409]
[1773245215402,15.53835392,85.563,85.51,10.523]
[1773245215403,10.517,85.556,85.51,10.523]
[1773245215807,0.08551198,85.545,85.509,15.82119409]
[1773245216599,15.4521414,85.618,85.531,15.82119409]
[1773245217609,15.4521414,85.616,85.557,10.517]
[1773245217806,15.4521414,85.616,85.548,15.82119409]
[1773245217999,15.4521414,85.639,85.566,15.89680925]
[1773245218398,15.4521414,85.639,85.568,10.516]
[1773245218600,6.37357132,85.64,85.566,15.89680925]
[1773245218601,15.4521414,85.622,85.566,15.82119409]
[1773245219006,15.4521414,85.622,85.595,0.07728617]
[1773245219201,10.509,85.621,85.595,0.07728617]
[1773245219403,15.4521414,85.62,85.549,15.82119409]
[1773245219804,14.72,85.661,85.572,15.82119409]
[1773245220011,15.4521414,85.682,85.591,15.82119409]
[1773245220403,15.4521414,85.67,85.603,10.511]
[1773245220602,15.4521414,85.67,85.603,15.82119409]
[1773245221006,15.4521414,85.688,85.628,15.82119409]
[1773245221310,0.07879318,85.645,85.609,15.82119409]
[1773245221707,15.4521414,85.671,85.591,15.82119409]
[1773245222208,0.08166833,85.636,85.583,10.514]
[1773245222413,15.4521414,85.635,85.554,15.82119409]
[1773245222606,15.4521414,85.676,85.591,15.82119409]
[1773245222801,15.4521414,85.676,85.612,10.51]
[1773245223004,15.4521414,85.676,85.591,15.82119409]
[1773245223404,15.4521414,85.676,85.606,10.511]
[1773245224109,15.4521414,85.676,85.632,0.08533821]
[1773245224407,15.4521414,85.676,85.606,10.511]
[1773245224408,15.4521414,85.676,85.592,10.513]
[1773245224608,15.4521414,85.676,85.593,15.82119409]
[1773245224808,15.4521414,85.672,85.587,10.513]
[1773245225011,15.4521414,85.672,85.578,15.82119409]
[1773245225813,0.08057301,85.634,85.578,15.82119409]
[1773245226110,0.08057301,85.634,85.603,10.511]
[1773245226311,15.4521414,85.654,85.603,10.511]
[1773245226715,0.07756792,85.627,85.603,10.511]
[1773245226910,0.07756792,85.627,85.58,6.37357132]
[1773245226911,15.4521414,85.679,85.612,26.33119409]
[1773245227213,15.4521414,85.679,85.613,15.82119409]
[1773245227615,15.4521414,85.679,85.627,10.509]
[1773245228309,15.4521414,85.679,85.644,0.07975029]
[1773245230014,15.4521414,85.679,85.595,14.7]
[1773245230015,15.4521414,85.669,85.586,15.82119409]
[1773245230213,15.4521414,85.669,85.602,10.512]
[1773245230214,10.504,85.666,85.602,10.512]
[1773245230408,15.4521414,85.669,85.603,15.82119409]
[1773245231112,0.08702871,85.645,85.585,15.82119409]
[1773245231714,15.4521414,85.652,85.585,15.82119409]
[1773245232016,0.07542933,85.624,85.598,10.512]
[1773245232410,0.07542933,85.624,85.585,15.82119409]
[1773245232812,15.4521414,85.652,85.585,15.82119409]
[1773245233113,15.4521414,85.67,85.604,10.511]
[1773245233508,15.4521414,85.67,85.605,15.82119409]
[1773245233817,15.4521414,85.689,85.605,15.82119409]
[1773245234315,15.4521414,85.689,85.629,0.07679302]
[1773245234516,15.4521414,85.689,85.63,15.82119409]
[1773245235110,15.4521414,85.689,85.611,15.82119409]
[1773245235317,15.4521414,85.688,85.624,10.509]
[1773245235513,15.4521414,85.688,85.611,15.82119409]
[1773245236208,15.4521414,85.68,85.641,0.07788829]
[1773245236813,15.4521414,85.68,85.615,10.51]
[1773245237414,10.503,85.674,85.615,10.51]
[1773245237612,15.4521414,85.673,85.615,10.51]
[1773245238313,15.4521414,85.664,85.593,15.82119409]
[1773245238920,15.4521414,85.659,85.571,15.82119409]
[1773245239314,10.507,85.637,85.586,15.82119409]
[1773245239716,15.4521414,85.637,85.568,15.82119409]
[1773245239920,10.511,85.606,85.55,15.41144728]
[1773245240115,15.21790884,85.62,85.55,15.41144728]
[1773245240522,10.511,85.608,85.551,10.518]
[1773245240717,0.08291171,85.611,85.55,15.41144728]
[1773245240917,15.21790884,85.619,85.55,15.41144728]
[1773245241818,0.07909012,85.593,85.55,15.41144728]
[1773245243122,10.509,85.623,85.567,25.92744728]
[1773245244016,10.511,85.612,85.567,15.41144728]
[1773245244323,15.21790884,85.637,85.567,15.41144728]
[1773245244620,15.21790884,85.619,85.535,15.41144728]
[1773245244921,15.21790884,85.605,85.545,10.519]
[1773245245421,10.513,85.596,85.545,10.519]
[1773245245619,15.21790884,85.605,85.535,15.41144728]
[1773245246023,10.58892579,85.579,85.52,10.522]
[1773245246223,0.07392579,85.579,85.52,15.41144728]
[1773245246613,15.21790884,85.588,85.52,15.41144728]
[1773245247027,0.0746284,85.558,85.52,15.41144728]
[1773245247217,0.0746284,85.558,85.521,15.41144728]
[1773245247819,10.514,85.581,85.521,15.41144728]
[1773245248217,0.08120752,85.548,85.521,15.41144728]
[1773245248415,15.21790884,85.588,85.529,15.41144728]
[1773245248618,15.21790884,85.606,85.529,15.41144728]
[1773245249020,15.21790884,85.606,85.545,10.519]
[1773245249219,6.35601104,85.6,85.529,15.41144728]
[1773245249419,15.21790884,85.599,85.529,15.41144728]
[1773245249720,15.21790884,85.599,85.556,0.07424137]
[1773245250126,10.515,85.579,85.556,0.07424137]
[1773245250724,10.516,85.571,85.556,0.07424137]
[1773245251025,15.21790884,85.599,85.556,0.07424137]
[1773245252328,10.514,85.581,85.556,0.07424137]
[1773245252922,10.514,85.581,85.529,25.93244728]
[1773245253125,15.21790884,85.581,85.511,15.41144728]
[1773245253923,10.516,85.564,85.511,15.41144728]
[1773245254127,25.73390884,85.564,85.511,15.41144728]
[1773245254423,10.521,85.53,85.478,15.41144728]
[1773245254625,15.21790884,85.53,85.451,15.41144728]
[1773245255126,15.21790884,85.53,85.466,10.528]
[1773245255326,0.07894809,85.499,85.466,10.528]
[1773245255716,0.07894809,85.499,85.458,10.529]
[1773245256121,0.07894809,85.499,85.458,25.94044728]
[1773245256524,0.07894809,85.499,85.463,10.529]
[1773245256823,10.522,85.516,85.463,10.529]
[1773245257025,10.523,85.513,85.47,0.08724166]
[1773245257423,6.35601104,85.54,85.47,15.49868894]
[1773245257620,15.21790884,85.539,85.47,15.41144728]
[1773245258029,15.21790884,85.539,85.496,0.07500693]
[1773245258228,10.521,85.531,85.496,0.07500693]
[1773245258630,15.21790884,85.539,85.496,0.07500693]
[1773245260028,10.521,85.528,85.496,0.07500693]
[1773245261024,10.521,85.527,85.496,0.07500693]
[1773245261532,15.57428171,85.535,85.496,0.07500693]
[1773245261932,10.521,85.525,85.496,0.07500693]
[1773245262527,15.57428171,85.525,85.432,16.15795626]
[1773245262735,15.57428171,85.525,85.431,14.72]
[1773245262736,15.57428171,85.518,85.464,10.529]
[1773245263028,15.57428171,85.518,85.453,16.15795626]
[1773245263231,15.57428171,85.518,85.436,16.15795626]
[1773245264126,15.57428171,85.518,85.459,10.529]
[1773245264429,0.07739981,85.486,85.459,10.529]
[1773245264826,10.522,85.516,85.467,16.15795626]
[1773245265226,10.52,85.534,85.477,10.527]
[1773245265421,10.52,85.534,85.478,16.15795626]
[1773245266227,10.52,85.534,85.497,0.07825062]
[1773245266431,10.521,85.527,85.497,0.07825062]
[1773245268033,10.52,85.535,85.497,0.07825062]
[1773245268629,10.521,85.527,85.497,0.07825062]
[1773245268830,15.57428171,85.535,85.497,0.07825062]
[1773245269033,15.57428171,85.535,85.46,16.15795626]
[1773245269222,10.521,85.53,85.46,16.15795626]
[1773245269427,0.07601642,85.521,85.46,16.15795626]
[1773245269824,10.522,85.522,85.474,10.527]
[1773245270435,0.07858771,85.507,85.474,10.527]
[1773245272832,0.07858771,85.507,85.475,16.19041737]
[1773245273336,10.521,85.53,85.475,16.19041737]
[1773245273836,10.521,85.53,85.489,10.526]
[1773245275037,0.07834349,85.518,85.489,10.526]
[1773245275536,15.79619121,85.57,85.496,16.19041737]
[1773245276331,10.517,85.556,85.504,10.524]
[1773245277037,10.517,85.556,85.521,0.07661486]
[1773245278642,10.518,85.55,85.521,0.07661486]
[1773245278939,15.79619121,85.555,85.491,10.525]
[1773245279138,0.07593561,85.544,85.491,10.525]
[1773245279441,15.79619121,85.543,85.483,10.526]
[1773245279641,15.79619121,85.543,85.479,16.19041737]
[1773245280036,15.79619121,85.543,85.462,16.19041737]
[1773245280434,15.79619121,85.519,85.446,16.19041737]
[1773245280839,15.79619121,85.509,85.446,16.19041737]
[1773245281542,10.524,85.499,85.453,26.72041737]
[1773245281743,15.79619121,85.509,85.454,16.19041737]
[1773245282049,14.72,85.525,85.454,16.19041737]
[1773245282546,10.522,85.518,85.469,10.528]
[1773245282948,26.31319121,85.561,85.496,16.19041737]
[1773245283239,15.79619121,85.561,85.496,16.19041737]
[1773245283634,0.07488815,85.537,85.496,16.19041737]
[1773245284246,0.07488815,85.537,85.498,10.524]
[1773245284445,0.07488815,85.537,85.477,16.19041737]
[1773245285145,15.79619121,85.545,85.477,16.19041737]
[1773245285346,10.519,85.54,85.49,10.525]
[1773245287038,10.518,85.551,85.499,26.71441737]
[1773245287242,10.518,85.551,85.5,16.19041737]
[1773245287444,15.79619121,85.564,85.5,16.19041737]
[1773245287643,10.516,85.567,85.523,10.521]
[1773245288247,10.516,85.567,85.516,16.19041737]
[1773245288848,10.515,85.575,85.52,16.19041737]
[1773245289849,0.07451887,85.556,85.52,16.19041737]
[1773245290241,0.07451887,85.556,85.533,10.52]
[1773245290449,10.514,85.584,85.533,10.52]
[1773245290848,15.79619121,85.598,85.541,16.19041737]
[1773245291753,15.79619121,85.598,85.561,0.08753489]
[1773245292351,10.512,85.603,85.561,0.08753489]
[1773245292742,15.79619121,85.615,85.561,0.08753489]
[1773245292948,10.513,85.595,85.543,16.19041737]
[1773245293548,14.72,85.621,85.55,6.36801222]
[1773245293748,15.79619121,85.633,85.551,16.19041737]
[1773245294752,15.79619121,85.633,85.553,16.19041737]
[1773245295346,26.30219121,85.653,85.584,16.19041737]
[1773245295544,15.79619121,85.652,85.566,16.19041737]
[1773245295949,10.51,85.614,85.566,16.19041737]
[1773245296253,15.79619121,85.617,85.549,16.19041737]
[1773245296754,15.79619121,85.612,85.549,16.19041737]
[1773245297054,15.79619121,85.612,85.559,26.70741737]
[1773245297554,0.07610818,85.589,85.55,10.518]
[1773245297949,0.07610818,85.589,85.541,16.19041737]
[1773245298149,0.07610818,85.589,85.556,16.19041737]
[1773245298853,15.79619121,85.612,85.556,16.19041737]
[1773245300353,0.07530232,85.593,85.556,16.19041737]
[1773245300554,0.07530232,85.593,85.518,16.28238787]
[1773245301059,10.513,85.592,85.545,10.519]
[1773245301357,15.79619121,85.612,85.545,10.519]
[1773245301757,15.79619121,85.612,85.51,6.36801222]
[1773245301758,10.512,85.601,85.56,0.08808949]
[1773245301954,15.79619121,85.612,85.56,0.08808949]
[1773245302356,15.79619121,85.612,85.546,16.28238787]
[1773245302960,15.79619121,85.612,85.57,0.08091328]
[1773245303156,10.511,85.611,85.57,0.08091328]
[1773245306364,15.79619121,85.612,85.57,0.08091328]
[1773245306968,10.513,85.594,85.57,0.08091328]
[1773245307662,6.36801222,85.63,85.57,0.08091328]
[1773245307867,10.514,85.58,85.528,16.28238787]
[1773245309165,0.08220758,85.563,85.528,16.28238787]
[1773245309371,0.08220758,85.563,85.537,10.52]
[1773245309576,0.08220758,85.563,85.528,16.28238787]
[1773245311573,0.08220758,85.563,85.512,16.28238787]
[1773245311768,15.52200026,85.562,85.511,288.18515085]
[1773245311974,15.52200026,85.555,85.495,16.28238787]
[1773245312578,0.07845217,85.534,85.495,16.28238787]
[1773245313572,0.07845217,85.534,85.468,16.28238787]
[1773245314076,15.52200026,85.555,85.468,16.28238787]
[1773245314376,10.519,85.54,85.49,10.525]
[1773245314569,15.52200026,85.555,85.491,16.28238787]
[1773245315473,15.52200026,85.569,85.491,16.28238787]
[1773245315671,15.52200026,85.569,85.501,16.28238787]
[1773245315972,0.0782581,85.532,85.501,16.28238787]
[1773245317176,15.52200026,85.569,85.501,16.28238787]
[1773245317471,15.52200026,85.569,85.48,6.36801222]
[1773245317472,15.52200026,85.569,85.519,16.28238787]
[1773245317971,15.52200026,85.569,85.489,16.28238787]
[1773245318774,15.52200026,85.569,85.52,0.08468258]
[1773245319672,15.52200026,85.547,85.489,16.28238787]
[1773245320274,10.519,85.54,85.489,16.28238787]
[1773245320474,14.98876595,85.539,85.489,16.28238787]
[1773245320669,14.98876595,85.569,85.489,16.28238787]
[1773245320870,10.516,85.567,85.516,15.83182175]
[1773245321676,10.517,85.56,85.533,0.08047773]
[1773245321882,14.98876595,85.569,85.533,0.08047773]
[1773245322581,10.516,85.568,85.533,0.08047773]
[1773245324376,14.98876595,85.569,85.533,0.08047773]
[1773245324775,10.518,85.551,85.533,0.08047773]
[1773245327680,10.517,85.558,85.533,0.08047773]
[1773245327881,6.36801222,85.59,85.533,0.08047773]
[1773245327882,14.98876595,85.584,85.533,0.08047773]
[1773245328583,14.98876595,85.584,85.52,15.83182175]
[1773245329083,10.517,85.562,85.52,15.83182175]
[1773245329285,14.98876595,85.569,85.503,15.83182175]
[1773245329680,0.08438463,85.561,85.503,15.83182175]
[1773245330180,14.98876595,85.569,85.503,15.83182175]
[1773245330486,14.98876595,85.569,85.518,10.522]
[1773245330884,0.08423133,85.545,85.503,15.83182175]
[1773245331586,0.08423133,85.545,85.517,10.522]
[1773245332381,0.08423133,85.545,85.51,10.523]
[1773245332686,0.08423133,85.545,85.503,15.83182175]
[1773245332883,0.08423133,85.545,85.503,26.35582175]
[1773245333085,0.08423133,85.545,85.503,15.83182175]
[1773245334485,0.08423133,85.545,85.515,10.522]
[1773245335282,10.517,85.561,85.516,15.52148208]
[1773245335484,15.0344937,85.612,85.549,15.52148208]
[1773245336384,10.511,85.611,85.558,26.03848208]
[1773245336584,15.0344937,85.612,85.558,15.52148208]
[1773245336790,15.0344937,85.612,85.572,0.08172239]
[1773245337088,10.511,85.605,85.572,0.08172239]
[1773245337290,15.0344937,85.612,85.572,0.08172239]
[1773245338193,10.512,85.603,85.572,0.08172239]
[1773245339991,10.513,85.594,85.572,0.08172239]
[1773245340991,15.0344937,85.583,85.525,15.52148208]
[1773245341385,0.07851932,85.592,85.525,15.52148208]
[1773245341585,15.0344937,85.599,85.546,10.518]
[1773245341786,15.0344937,85.599,85.54,15.52148208]
[1773245342192,0.08106378,85.581,85.54,15.52148208]
[1773245342496,0.08106378,85.581,85.552,10.518]
[1773245343400,0.08106378,85.581,85.559,10.517]
[1773245344498,0.08106378,85.581,85.531,15.52148208]
[1773245345396,0.08106378,85.581,85.539,10.519]
[1773245345597,0.08106378,85.581,85.531,15.52148208]
[1773245345898,15.0344937,85.614,85.552,15.52148208]
[1773245346495,10.512,85.597,85.556,10.517]
[1773245346695,15.0344937,85.614,85.556,10.517]
[1773245347498,10.511,85.605,85.576,0.08171295]
[1773245348999,10.512,85.598,85.576,0.08171295]
[1773245349996,10.513,85.593,85.552,15.52148208]
[1773245350302,10.513,85.593,85.548,10.518]
[1773245350600,10.513,85.593,85.537,15.52148208]
[1773245350997,10.513,85.593,85.548,10.518]
[1773245351297,10.513,85.593,85.548,26.03948208]
[1773245351602,0.07677657,85.579,85.548,26.03948208]
[1773245352100,0.07677657,85.579,85.55,10.518]
[1773245352691,10.513,85.593,85.55,10.518]
[1773245352997,0.078006,85.573,85.527,15.52148208]
[1773245353501,15.0344937,85.581,85.527,15.52148208]
[1773245353903,0.07912094,85.559,85.527,15.52148208]
[1773245354402,0.07912094,85.559,85.521,10.522]
[1773245355003,15.0344937,85.581,85.521,10.522]
[1773245355197,10.517,85.562,85.513,26.04448208]
[1773245355399,10.517,85.562,85.514,15.52148208]
[1773245355905,0.07640441,85.546,85.524,10.521]
[1773245356501,0.07640441,85.546,85.516,10.522]
[1773245356711,0.07640441,85.546,85.516,26.04348208]
[1773245356900,0.07640441,85.546,85.517,15.52148208]
[1773245358510,0.07640441,85.546,85.518,10.522]
[1773245359404,0.07640441,85.546,85.503,15.52148208]
[1773245360107,10.516,85.564,85.503,15.52148208]
[1773245360504,10.516,85.564,85.524,16.35760491]
[1773245361309,15.37865804,85.582,85.502,14.72]
[1773245362506,6.36749907,85.59,85.502,14.72]
[1773245362507,15.37865804,85.55,85.502,14.72]
[1773245363310,15.37865804,85.55,85.494,16.35760491]
[1773245364210,10.79701545,85.598,85.503,16.35760491]
[1773245364211,0.0823661,85.531,85.503,16.35760491]
[1773245364410,0.0823661,85.531,85.485,16.35760491]
[1773245364610,0.0823661,85.531,85.485,31.07760491]
[1773245364810,15.37865804,85.541,85.486,16.35760491]
[1773245365008,15.37865804,85.557,85.486,16.35760491]
[1773245365317,10.519,85.541,85.502,16.35760491]
[1773245366416,15.37865804,85.557,85.502,26.88160491]
[1773245366613,15.37865804,85.557,85.513,0.0797704]
[1773245367309,10.519,85.542,85.513,0.0797704]
[1773245370518,15.37865804,85.549,85.513,0.0797704]
[1773245371017,15.37865804,85.549,85.488,16.35760491]
[1773245372312,10.519,85.547,85.503,10.524]
[1773245373024,10.518,85.554,85.509,26.88060491]
[1773245373218,15.37865804,85.564,85.516,0.07601729]
[1773245373621,15.37865804,85.559,85.516,0.07601729]
[1773245374115,15.37865804,85.559,85.509,26.88060491]
[1773245374422,10.519,85.54,85.493,16.35760491]
[1773245374822,10.52,85.533,85.493,16.35760491]
[1773245375520,10.52,85.533,85.495,10.525]
[1773245375721,15.37865804,85.539,85.495,10.525]
[1773245375923,0.07641637,85.522,85.495,10.525]
[1773245378022,0.07641637,85.522,85.493,16.35760491]
[1773245379425,10.519,85.541,85.502,15.74422911]
[1773245380321,17.59698046,85.57,85.517,15.74422911]
[1773245380519,15.04711414,85.57,85.521,15.74422911]
[1773245381320,15.04711414,85.57,85.52,2.54986632]
[1773245381321,10.517,85.562,85.523,15.74422911]
[1773245381623,15.04711414,85.584,85.531,15.74422911]
[1773245382129,15.04711414,85.584,85.534,0.07870531]
[1773245382424,10.515,85.573,85.537,10.52]
[1773245382820,15.04711414,85.579,85.534,0.07870531]
[1773245383025,15.04711414,85.579,85.521,15.74422911]
[1773245383420,10.515,85.573,85.548,0.07536731]
[1773245384127,10.516,85.567,85.548,0.07536731]
[1773245386133,10.515,85.576,85.548,0.07536731]
[1773245386529,15.04711414,85.579,85.548,0.07536731]
[1773245387526,15.04711414,85.579,85.502,35.06]
[1773245387527,15.04711414,85.569,85.51,2.54986632]
[1773245387726,15.04711414,85.569,85.507,15.74422911]
[1773245388124,10.518,85.555,85.51,2.54986632]
[1773245388329,10.518,85.555,85.507,15.74422911]
[1773245388532,10.52,85.538,85.507,15.74422911]
[1773245388732,15.04711414,85.559,85.507,15.74422911]
[1773245389031,0.0833532,85.54,85.507,15.74422911]
[1773245391431,0.0833532,85.54,85.508,10.523]
[1773245393638,0.0833532,85.54,85.507,15.74422911]
[1773245396139,0.0833532,85.54,85.509,10.523]
[1773245396342,0.0833532,85.54,85.51,18.54835255]
[1773245397345,0.0833532,85.54,85.513,10.523]
[1773245397543,0.0833532,85.54,85.51,18.54835255]
[1773245398348,0.0833532,85.54,85.51,15.99848623]
[1773245399946,0.0833532,85.54,85.51,18.54835255]
[1773245400350,0.0833532,85.54,85.511,10.523]
[1773245400648,0.0833532,85.54,85.511,26.52148623]
[1773245400846,10.516,85.571,85.531,10.52]
[1773245401050,15.50740868,85.586,85.532,15.99848623]
[1773245401248,2.54986632,85.61,85.541,15.99848623]
[1773245401445,10.512,85.599,85.558,10.517]
[1773245401645,15.50740868,85.606,85.561,15.99848623]
[1773245401946,14.72,85.622,85.561,15.99848623]
[1773245402143,15.50740868,85.621,85.574,15.99848623]
[1773245402345,15.50740868,85.621,85.575,0.07835988]
[1773245402748,15.50740868,85.621,85.58,2.54986632]
[1773245402948,15.50740868,85.621,85.576,15.99848623]
[1773245403345,10.51,85.619,85.576,15.99848623]
[1773245403542,15.50740868,85.638,85.581,15.99848623]
[1773245403950,10.51,85.617,85.581,15.99848623]
[1773245404150,15.50740868,85.629,85.57,2.54986632]
[1773245404653,10.512,85.599,85.551,15.99848623]
[1773245404845,15.50740868,85.605,85.551,15.99848623]
[1773245405045,18.057275,85.6,85.551,15.99848623]
[1773245405245,18.057275,85.6,85.54,2.54986632]
[1773245405449,18.057275,85.6,85.54,18.54835255]
[1773245405647,15.50740868,85.6,85.551,15.99848623]
[1773245405953,15.50740868,85.609,85.551,15.99848623]
[1773245406251,10.513,85.593,85.551,15.99848623]
[1773245406552,0.0766614,85.584,85.551,15.99848623]
[1773245410153,0.0766614,85.584,85.556,15.99848623]
[1773245410357,15.50740868,85.667,85.571,15.99848623]
[1773245410654,15.50740868,85.667,85.62,2.54986632]
[1773245410855,15.50740868,85.684,85.63,2.54986632]
[1773245411446,15.50740868,85.684,85.621,15.99848623]
[1773245411447,15.50740868,85.684,85.64,2.54986632]
[1773245412056,15.50740868,85.684,85.63,2.54986632]
[1773245412258,15.50740868,85.684,85.653,0.07763085]
[1773245413256,10.501,85.686,85.653,0.07763085]
[1773245413457,10.501,85.686,85.66,2.54986632]
[1773245413655,10.501,85.686,85.653,0.07763085]
[1773245415055,15.50740868,85.7,85.653,0.07763085]
[1773245415250,18.04812323,85.7,85.653,0.07763085]
[1773245415448,15.50740868,85.689,85.63,2.54071455]
[1773245415654,10.505,85.654,85.62,2.54071455]
[1773245416460,10.504,85.664,85.62,2.54071455]
[1773245416857,0.08067136,85.646,85.62,2.54071455]
[1773245417557,0.08067136,85.646,85.585,15.99848623]
[1773245417558,15.58808004,85.646,85.585,15.99848623]
[1773245417756,0.08067136,85.646,85.585,15.99848623]
[1773245417952,26.01140868,85.663,85.61,10.511]
[1773245418153,15.50740868,85.663,85.607,15.99848623]
[1773245418660,0.07499261,85.624,85.607,15.99848623]
[1773245418858,10.506,85.648,85.607,15.99848623]
[1773245419058,15.50740868,85.663,85.607,15.99848623]
[1773245419258,15.50740868,85.805,85.663,163.405]
[1773245419460,15.50740868,85.823,85.741,15.99848623]
[1773245419857,15.50740868,85.823,85.757,25.78338854]
[1773245420256,0.0770938,85.791,85.757,25.78338854]
[1773245420456,0.0770938,85.791,85.758,15.29038854]
[1773245420750,0.0770938,85.791,85.736,15.29038854]
[1773245421455,6.35891597,85.83,85.736,15.29038854]
[1773245421456,15.85097239,85.817,85.736,15.29038854]
[1773245421759,0.07492485,85.772,85.736,15.29038854]
[1773245422360,0.07492485,85.772,85.738,10.495]
[1773245422663,15.85097239,85.817,85.738,15.29038854]
[1773245423761,21.05891597,85.83,85.738,15.29038854]
[1773245423762,15.85097239,85.804,85.738,15.29038854]
[1773245423957,10.80584065,85.907,85.711,14.7]
[1773245423958,15.85097239,85.85,85.781,15.29038854]
[1773245424155,10.482,85.848,85.784,10.489]
[1773245424362,15.85097239,85.85,85.785,15.29038854]
[1773245425161,15.85097239,85.849,85.785,15.29038854]
[1773245425458,15.85097239,85.849,85.809,0.07869542]
[1773245425653,15.85097239,85.836,85.767,10.491]
[1773245425858,15.85097239,85.862,85.768,15.29038854]
[1773245426462,10.481,85.851,85.768,15.29038854]
[1773245426762,15.85097239,85.85,85.768,15.29038854]
[1773245427062,6.35891597,85.87,85.768,15.29038854]
[1773245427063,0.08206344,85.824,85.768,15.29038854]
[1773245427564,15.85097239,85.83,85.768,15.29038854]
[1773245427858,15.85097239,85.83,85.77,25.78138854]
[1773245428256,15.85097239,85.83,85.771,15.29038854]
[1773245428464,0.0841217,85.809,85.773,15.29038854]
[1773245428757,0.0841217,85.809,85.616,21.70371703]
[1773245428758,15.93509409,85.809,85.734,15.29038854]
[1773245429161,15.93509409,85.809,85.748,15.29038854]
[1773245429466,15.93509409,85.809,85.682,11.69]
[1773245429467,15.85097239,85.809,85.712,15.29038854]
[1773245429665,26.33697239,85.809,85.736,15.29038854]
[1773245430567,0.07881846,85.781,85.749,15.29038854]
[1773245432267,0.07881846,85.781,85.731,15.29038854]
[1773245432966,10.488,85.799,85.732,25.78638854]
[1773245433159,10.488,85.799,85.733,15.29038854]
[1773245433360,15.85097239,85.809,85.733,15.29038854]
[1773245434064,15.85097239,85.809,85.762,0.07646034]
[1773245436666,15.85097239,85.827,85.763,15.29038854]
[1773245437166,15.85097239,85.827,85.768,10.491]
[1773245437370,15.85097239,85.827,85.763,15.29038854]
[1773245437563,15.85097239,85.827,85.786,0.07776389]
[1773245439973,15.85097239,85.827,85.786,10.56676389]
[1773245440269,10.482,85.841,85.786,10.56676389]
[1773245440468,15.76963547,85.846,85.787,15.2850016]
[1773245440670,15.76963547,85.864,85.812,10.486]
[1773245440974,15.76963547,85.887,85.812,15.2850016]
[1773245441171,15.76963547,85.859,85.782,15.29665354]
[1773245441364,10.487,85.807,85.742,15.29737631]
[1773245441570,15.76963547,85.811,85.769,10.491]
[1773245441774,15.76963547,85.811,85.742,15.29737631]
[1773245441967,15.76963547,85.837,85.742,15.29737631]
[1773245442173,15.76963547,85.837,85.776,15.30862672]
[1773245442373,15.76963547,85.856,85.776,15.30862672]